fUSD/lending_fUSD_20250307
["ID","MTS","AMOUNT","RATE_DAILY","PERIOD"]
[355606887,1741363559648,150.0,7.975e-05,2]
[355606888,1741363559689,150.0,7.948e-05,2]
[355606889,1741363560315,150.0,7.941e-05,2]
[355606890,1741363560376,150.0,7.928e-05,2]
[355606891,1741363560432,150.0,8.019e-05,2]
[355606892,1741363560509,150.0,7.949e-05,2]
[355606893,1741363560817,150.0,8.068e-05,2]
[355606894,1741363560869,150.0,7.918e-05,2]
[355606895,1741363560974,150.0,7.922e-05,2]
[355606896,1741363561092,150.0,8.065e-05,2]
[355606897,1741363561217,150.0,8.012e-05,2]
[355606898,1741363650098,300.0,7.6e-05,2]
[355606899,1741363652280,700.0,7.7e-05,2]
[355606900,1741363654386,1000.0,7.8e-05,2]
[355606901,1741363656503,1400.0,7.9e-05,2]
[355606902,1741363658615,1700.0,8e-05,2]
[355606905,1741363737451,150.0,8.065e-05,2]
[355606906,1741363737491,150.0,8.01e-05,2]
[355606907,1741363737603,150.0,7.932e-05,2]
[355606908,1741363737880,150.0,8.024e-05,2]
[355606909,1741363737920,150.0,8.061e-05,2]
[355606910,1741363737960,150.0,8.06e-05,2]
[355606911,1741363738004,150.0,8.052e-05,2]
[355606912,1741363738071,150.0,8.076e-05,2]
[355606913,1741363738106,150.0,8.07e-05,2]
[355606914,1741363738217,150.0,7.942e-05,2]
[355606915,1741363738325,150.0,7.917e-05,2]
[355606916,1741363738372,150.0,8.058e-05,2]
[355606917,1741363738413,150.0,8.036e-05,2]
[355606918,1741363738448,150.0,8.001e-05,2]
[355606919,1741363738482,150.0,7.918e-05,2]
[355606920,1741363738521,150.0,8.08e-05,2]
[355606921,1741363738563,150.0,8.009e-05,2]
[355606922,1741363738605,150.0,8e-05,2]
[355606923,1741363738663,150.0,7.941e-05,2]
[355606924,1741363738704,150.0,7.944e-05,2]
[355606925,1741363738749,150.0,7.948e-05,2]
[355606926,1741363738801,150.0,8.023e-05,2]
[355606927,1741363738854,150.0,7.915e-05,2]
[355606928,1741363738894,150.0,7.912e-05,2]
[355606929,1741363738930,150.0,8.024e-05,2]
[355606930,1741363738966,150.0,7.918e-05,2]
[355606931,1741363739008,150.0,7.924e-05,2]
[355606932,1741363739046,150.0,8.073e-05,2]
[355606933,1741363739093,150.0,7.976e-05,2]
[355606934,1741363739129,150.0,8e-05,2]
[355606935,1741363739165,150.0,7.955e-05,2]
[355606936,1741363739206,150.0,7.982e-05,2]
[355606937,1741363739245,150.0,7.974e-05,2]
[355606938,1741363739300,150.0,8.028e-05,2]
[355606939,1741363739345,150.0,8.059e-05,2]
[355606940,1741363739381,150.0,7.966e-05,2]
[355606941,1741363739416,150.0,8.024e-05,2]
[355606942,1741363739455,150.0,8.066e-05,2]
[355606946,1741363762884,-150.0,8.083e-05,2]
[355606947,1741363762921,-150.0,8.085e-05,2]
[355606948,1741363762959,-150.0,8.087e-05,2]
[355606949,1741363763007,-275.33468737,8.087e-05,2]
[355606950,1741363763048,-150.0,8.088e-05,2]
[355606951,1741363763090,-150.0,8.088e-05,2]
[355606952,1741363763131,-150.0,8.088e-05,2]
[355606953,1741363763169,-78.45493767,8.09e-05,2]
[355606954,1741363763298,150.0,7.992e-05,2]
[355606955,1741363763409,150.0,7.954e-05,2]
[355606956,1741363763463,150.0,7.962e-05,2]
[355606957,1741363763624,150.0,7.911e-05,2]
[355606958,1741363763976,150.0,7.993e-05,2]
[355606959,1741363764022,150.0,8.041e-05,2]
[355606960,1741363764065,150.0,7.985e-05,2]
[355606961,1741363764105,150.0,7.943e-05,2]
[355606962,1741363764141,150.0,7.951e-05,2]
[355606963,1741363764248,150.0,8.063e-05,2]
[355606964,1741363774187,150.0,7.982e-05,2]
[355606965,1741363774267,150.0,8.044e-05,2]
[355606966,1741363775119,150.0,8.01e-05,2]
[355606967,1741363775373,150.0,8.044e-05,2]
[355606968,1741363775545,150.0,8.039e-05,2]
[355606969,1741363775622,150.0,8.03e-05,2]
[355606970,1741363781847,300.0,8.031e-05,2]
[355606971,1741363801044,1215.27,7.15e-05,2]
[355606974,1741363832401,-71.54506233,8.09e-05,2]
[355606975,1741363832413,-150.0,8.092e-05,2]
[355606976,1741363832425,-150.0,8.093e-05,2]
[355606977,1741363832435,-150.0,8.095e-05,2]
[355606978,1741363832446,-150.0,8.097e-05,2]
[355606979,1741363832457,-150.0,8.099e-05,2]
[355606980,1741363832467,-150.0,8.099e-05,2]
[355606981,1741363832478,-181.85713817,8.099e-05,2]
[355606982,1741363832513,-118.14286183,8.099e-05,2]
[355606983,1741363832524,-1717.065,8.1e-05,2]
[355606984,1741363832535,-150.0,8.1e-05,2]
[355606985,1741363832546,-4715.6905,8.1e-05,2]
[355606986,1741363832555,-31102.1972,8.1e-05,2]
[355606987,1741363832566,-1099.66895685,8.1e-05,2]
[355606988,1741363832576,-150.0,8.101e-05,2]
[355606989,1741363832586,-150.0,8.101e-05,2]
[355606990,1741363832596,-150.0,8.101e-05,2]
[355606991,1741363832607,-30000.0,8.101e-05,2]
[355606992,1741363832619,-150.0,8.104e-05,2]
[355606993,1741363832634,-150.0,8.106e-05,2]
[355606994,1741363832645,-150.0,8.106e-05,2]
[355606995,1741363832655,-150.0,8.106e-05,2]
[355606996,1741363832666,-150.0,8.106e-05,2]
[355606997,1741363832676,-150.0,8.108e-05,2]
[355606998,1741363832687,-150.0,8.108e-05,2]
[355606999,1741363832698,-150.0,8.108e-05,2]
[355607000,1741363832708,-150.0,8.11e-05,2]
[355607001,1741363832719,-150.0,8.11e-05,2]
[355607002,1741363832730,-150.0,8.112e-05,2]
[355607003,1741363832741,-150.0,8.114e-05,2]
[355607004,1741363832753,-150.0,8.115e-05,2]
[355607005,1741363832764,-150.0,8.115e-05,2]
[355607006,1741363832775,-150.0,8.116e-05,2]
[355607007,1741363832786,-150.0,8.119e-05,2]
[355607008,1741363832797,-150.0,8.119e-05,2]
[355607009,1741363832809,-150.0,8.119e-05,2]
[355607010,1741363832819,-150.0,8.12e-05,2]
[355607011,1741363832829,-150.0,8.12e-05,2]
[355607012,1741363832839,-150.0,8.12e-05,2]
[355607013,1741363832849,-150.0,8.121e-05,2]
[355607014,1741363832858,-150.0,8.122e-05,2]
[355607015,1741363832869,-150.0,8.122e-05,2]
[355607016,1741363832883,-150.0,8.122e-05,2]
[355607017,1741363832893,-150.0,8.122e-05,2]
[355607018,1741363832903,-150.0,8.122e-05,2]
[355607019,1741363832913,-150.0,8.122e-05,2]
[355607020,1741363832924,-150.0,8.123e-05,2]
[355607021,1741363832934,-150.0,8.123e-05,2]
[355607022,1741363832944,-150.0,8.123e-05,2]
[355607023,1741363832955,-150.0,8.125e-05,2]
[355607024,1741363832965,-150.0,8.125e-05,2]
[355607025,1741363832975,-150.0,8.126e-05,2]
[355607026,1741363832986,-150.0,8.127e-05,2]
[355607027,1741363832997,-150.0,8.127e-05,2]
[355607028,1741363833007,-150.0,8.127e-05,2]
[355607029,1741363833017,-150.0,8.127e-05,2]
[355607030,1741363833027,-171.25,8.127e-05,2]
[355607031,1741363833038,-171.25,8.127e-05,2]
[355607032,1741363833048,-171.25,8.127e-05,2]
[355607033,1741363833059,-150.0,8.128e-05,2]
[355607034,1741363833074,-150.0,8.129e-05,2]
[355607036,1741363833084,-150.0,8.129e-05,2]
[355607038,1741363833095,-150.0,8.129e-05,2]
[355607040,1741363833107,-150.0,8.13e-05,2]
[355607041,1741363833118,-150.0,8.131e-05,2]
[355607045,1741363833132,-150.0,8.133e-05,2]
[355607047,1741363833144,-150.0,8.134e-05,2]
[355607049,1741363833155,-150.0,8.135e-05,2]
[355607051,1741363833166,-150.0,8.136e-05,2]
[355607053,1741363833177,-150.0,8.137e-05,2]
[355607055,1741363833188,-150.0,8.138e-05,2]
[355607057,1741363833198,-150.0,8.14e-05,2]
[355607060,1741363833219,-152.04,8.14e-05,2]
[355607063,1741363833239,-150.0,8.14e-05,2]
[355607066,1741363833260,-880.62,8.14e-05,2]
[355607068,1741363833282,-150.0,8.14e-05,2]
[355607069,1741363833299,-150.0,8.14e-05,2]
[355607070,1741363833317,-150.0,8.14e-05,2]
[355607071,1741363833337,-150.0,8.14e-05,2]
[355607072,1741363833359,-150.39,8.14e-05,2]
[355607073,1741363833384,-150.0,8.14e-05,2]
[355607074,1741363833403,-300.0,8.14e-05,2]
[355607075,1741363833424,-150.0,8.14e-05,2]
[355607076,1741363833442,-150.0,8.14e-05,2]
[355607077,1741363833457,-150.0,8.14e-05,2]
[355607078,1741363833477,-1555.34,8.14e-05,2]
[355607079,1741363833491,-315.2,8.14e-05,2]
[355607080,1741363833511,-150.0,8.141e-05,2]
[355607081,1741363833526,-150.0,8.144e-05,2]
[355607082,1741363833541,-150.0,8.145e-05,2]
[355607083,1741363833563,-150.0,8.145e-05,2]
[355607084,1741363833579,-150.0,8.149e-05,2]
[355607085,1741363833596,-150.0,8.15e-05,2]
[355607086,1741363833612,-150.0,8.15e-05,2]
[355607087,1741363833631,-150.0,8.151e-05,2]
[355607088,1741363833648,-150.0,8.151e-05,2]
[355607089,1741363833664,-150.0,8.153e-05,2]
[355607090,1741363833681,-150.0,8.154e-05,2]
[355607091,1741363833699,-150.0,8.156e-05,2]
[355607092,1741363833717,-150.0,8.157e-05,2]
[355607093,1741363833734,-150.0,8.161e-05,2]
[355607094,1741363833752,-150.0,8.162e-05,2]
[355607095,1741363833769,-150.0,8.162e-05,2]
[355607096,1741363833787,-150.0,8.163e-05,2]
[355607097,1741363833805,-150.0,8.164e-05,2]
[355607098,1741363833822,-150.0,8.164e-05,2]
[355607099,1741363833839,-150.0,8.164e-05,2]
[355607100,1741363833856,-3671.0,8.164e-05,2]
[355607101,1741363833873,-150.0,8.167e-05,2]
[355607102,1741363833893,-150.0,8.168e-05,2]
[355607103,1741363833910,-150.0,8.169e-05,2]
[355607104,1741363833927,-150.0,8.169e-05,2]
[355607105,1741363833944,-150.0,8.171e-05,2]
[355607106,1741363833960,-150.0,8.171e-05,2]
[355607107,1741363833977,-150.0,8.173e-05,2]
[355607108,1741363833993,-150.0,8.173e-05,2]
[355607109,1741363834009,-150.0,8.174e-05,2]
[355607110,1741363834026,-150.0,8.175e-05,2]
[355607111,1741363834043,-150.0,8.176e-05,2]
[355607112,1741363834060,-150.0,8.176e-05,2]
[355607113,1741363834077,-150.0,8.177e-05,2]
[355607114,1741363834093,-150.0,8.18e-05,2]
[355607115,1741363834111,-150.0,8.184e-05,2]
[355607116,1741363834132,-150.0,8.185e-05,2]
[355607117,1741363834148,-150.0,8.186e-05,2]
[355607118,1741363834164,-150.0,8.189e-05,2]
[355607119,1741363834180,-150.0,8.19e-05,2]
[355607120,1741363834197,-150.0,8.19e-05,2]
[355607121,1741363834214,-7654.6738744,8.194e-05,2]
[355607122,1741363834230,-170.0483127,8.194e-05,2]
[355607123,1741363834246,-3727.1465938,8.194e-05,2]
[355607124,1741363834261,-966.0,8.2e-05,2]
[355607125,1741363834277,-150.0,8.2e-05,2]
[355607126,1741363834294,-3207.51325524,8.2e-05,2]
[355607127,1741363834309,-158.0,8.2e-05,3]
[355607128,1741363834327,-380109.74433015,8.2e-05,2]
[355607129,1741363834458,-455.28635528,8.2e-05,2]
[355607130,1741363834476,-8865.20000001,8.2e-05,2]
[355607138,1741363838344,-1049.99999,8.101e-05,2]
[355607139,1741363838456,-902.66,8.101e-05,2]
[355607140,1741363838468,-889.58900093,8.101e-05,2]
[355607141,1741363838564,-2587.42803,8.101e-05,2]
[355607142,1741363838576,-4442.40000004,8.101e-05,2]
[355607143,1741363838587,-9759.61977876,8.101e-05,2]
[355607144,1741363838599,-494.369955,8.101e-05,2]
[355607145,1741363838611,-268.28055403,8.101e-05,2]
[355607146,1741363838623,-8613.89143317,8.101e-05,2]
[355607147,1741363838635,-2160481.77962871,8.2e-05,2]
[355607148,1741363838671,-551.03554152,8.2e-05,2]
[355607150,1741363839068,-25050.29541261,8.2e-05,2]
[355607151,1741363839082,-2516.00545635,8.2e-05,2]
[355607185,1741363840485,-432.93250001,8.2e-05,2]
[355607186,1741363840499,-24104.6103854,8.2e-05,2]
[355607188,1741363841455,-25182.72911718,8.2e-05,2]
[355607189,1741363841525,-554.85750002,8.2e-05,2]
[355607210,1741363843549,-20054.0,8.2e-05,2]
[355607211,1741363843580,-11471.196693,8.2e-05,2]
[355607212,1741363843591,-81338.97863293,8.2e-05,2]
[355607224,1741363846374,-20815.21638582,8.2e-05,2]
[355607225,1741363846386,-799.3956001,8.2e-05,2]
[355607226,1741363846404,-69663.27704539,8.2e-05,2]
[355607227,1741363846416,-462779.999998,8.2e-05,2]
[355607228,1741363846535,-946.27983838,8.2e-05,2]
[355607229,1741363846666,-3277.94093333,8.2e-05,2]
[355607230,1741363846678,-1275.20869375,8.2e-05,2]
[355607268,1741363907414,150.0,7.992e-05,2]
[355607269,1741363907472,150.0,7.995e-05,2]
[355607270,1741363907570,150.0,8.009e-05,2]
[355607271,1741363907699,150.0,7.928e-05,2]
[355607272,1741363907751,150.0,8.059e-05,2]
[355607273,1741363907807,150.0,7.995e-05,2]
[355607274,1741363914896,150.0,8.061e-05,2]
[355607275,1741363914948,150.0,8.079e-05,2]
[355607276,1741363915005,150.0,8.068e-05,2]
[355607277,1741363915066,150.0,8.072e-05,2]
[355607278,1741363915304,150.0,7.962e-05,2]
[355607279,1741363915345,150.0,8.078e-05,2]
[355607280,1741363915498,150.0,8.004e-05,2]
[355607281,1741363915689,150.0,8.057e-05,2]
[355607282,1741363915782,150.0,7.939e-05,2]
[355607283,1741363915844,150.0,8.041e-05,2]
[355607284,1741363915904,150.0,8.047e-05,2]
[355607285,1741363915956,150.0,7.971e-05,2]
[355607286,1741363916301,150.0,7.937e-05,2]
[355607287,1741363916364,150.0,8.02e-05,2]
[355607288,1741363916403,150.0,7.973e-05,2]
[355607289,1741363916451,150.0,7.937e-05,2]
[355607290,1741363916648,150.0,8.059e-05,2]
[355607291,1741363916694,150.0,8.021e-05,2]
[355607292,1741363916763,150.0,8.003e-05,2]
[355607293,1741363916800,150.0,7.959e-05,2]
[355607294,1741363916845,150.0,7.941e-05,2]
[355607295,1741363916904,150.0,7.988e-05,2]
[355607296,1741363917198,150.0,8.018e-05,2]
[355607297,1741363917236,150.0,8.027e-05,2]
[355607298,1741363917287,150.0,7.956e-05,2]
[355607299,1741363917429,150.0,7.972e-05,2]
[355607300,1741363917484,150.0,8.014e-05,2]
[355607301,1741363931067,150.0,8.059e-05,2]
[355607302,1741363931119,150.0,8.047e-05,2]
[355607303,1741363931254,150.0,8.053e-05,2]
[355607304,1741363931357,150.0,8.007e-05,2]
[355607305,1741363931630,150.0,8.081e-05,2]
[355607306,1741363932356,150.0,8.024e-05,2]
[355607307,1741363932398,150.0,8.002e-05,2]
[355607308,1741363932436,150.0,8.064e-05,2]
[355607309,1741363932488,150.0,7.95e-05,2]
[355607310,1741363932537,150.0,7.945e-05,2]
[355607311,1741363932592,150.0,8.034e-05,2]
[355607312,1741363932682,150.0,8.048e-05,2]
[355607313,1741363932783,150.0,8.029e-05,2]
[355607315,1741364283995,278.34,7.169e-05,2]
[355607316,1741364284303,278.34,8.065e-05,2]
[355607317,1741364321938,2000.0,7.671e-05,2]
[355607318,1741364457097,154.42,7.169e-05,2]
[355607319,1741364457326,154.42,7.42e-05,2]
[355607320,1741364457585,154.42,7.671e-05,2]
[355607321,1741364465587,0.89251,7.7e-05,7]
[355607322,1741364465623,481.10749,7.7e-05,7]
[355607323,1741364465884,481.0,7.7e-05,7]
[355607324,1741364517496,150.0,7.988e-05,2]
[355607325,1741364517591,150.0,8.004e-05,2]
[355607326,1741364517640,150.0,8.028e-05,2]
[355607327,1741364517703,150.0,7.997e-05,2]
[355607328,1741364517787,150.0,8.032e-05,2]
[355607329,1741364517844,150.0,8.076e-05,2]
[355607330,1741364517904,150.0,7.984e-05,2]
[355607331,1741364517952,150.0,8.052e-05,2]
[355607332,1741364518052,150.0,8.009e-05,2]
[355607333,1741364518100,150.0,7.956e-05,2]
[355607334,1741364577528,150.0,7.982e-05,2]
[355607335,1741364577568,150.0,8.044e-05,2]
[355607336,1741364577784,150.0,7.974e-05,2]
[355607337,1741364578303,150.0,8.007e-05,2]
[355607338,1741364578349,150.0,7.983e-05,2]
[355607339,1741364578401,150.0,7.945e-05,2]
[355607340,1741364578466,150.0,8.019e-05,2]
[355607341,1741364578507,150.0,7.978e-05,2]
[355607342,1741364578567,150.0,8.019e-05,2]
[355607343,1741364582272,152.45983592,7.957e-05,2]
[355607344,1741364685162,169.97,7.382e-05,2]
[355607345,1741364685369,169.97,7.991e-05,2]
[355607347,1741364919164,-2881.25039622,8.085e-05,2]
[355607348,1741364919205,-2881.25039622,8.085e-05,2]
[355607349,1741364919261,-2881.25039622,8.085e-05,2]
[355607350,1741364919304,-1028.24881134,8.085e-05,2]
[355607351,1741364919339,-150.0,8.085e-05,2]
[355607352,1741364919373,-550.0,8.085e-05,2]
[355607353,1741364919409,-150.0,8.091e-05,2]
[355607354,1741364919447,-928.21671355,8.096e-05,2]
[355607355,1741364919484,-74.78487133,8.096e-05,2]
[355607356,1741364919555,-75.21512867,8.096e-05,2]
[355607357,1741364919591,-2806.03526755,8.1e-05,2]
[355607358,1741364919712,-2710.60445842,8.1e-05,2]
[355607389,1741365031811,-1208.707495,8.1e-05,2]
[355607390,1741365031822,-1928.14677903,8.1e-05,2]
[355607391,1741365031833,-150.0,8.103e-05,2]
[355607392,1741365031843,-150.0,8.115e-05,2]
[355607393,1741365031852,-150.0,8.116e-05,2]
[355607394,1741365031862,-150.0,8.121e-05,2]
[355607395,1741365031871,-150.0,8.125e-05,2]
[355607396,1741365031881,-150.0,8.15e-05,2]
[355607397,1741365031890,-150.0,8.16e-05,2]
[355607398,1741365031900,-150.0,8.161e-05,2]
[355607399,1741365031910,-150.0,8.168e-05,2]
[355607400,1741365031919,-150.0,8.172e-05,2]
[355607401,1741365031929,-1373.652,8.182e-05,2]
[355607402,1741365031939,-150.0,8.186e-05,2]
[355607403,1741365031948,-150.0,8.189e-05,2]
[355607404,1741365031957,-300.0,8.189e-05,2]
[355607405,1741365031967,-2625.31994514,8.19e-05,2]
[355607406,1741365031978,-101863.66606542,8.19e-05,2]
[355607407,1741365031987,-839.53992914,8.194e-05,2]
[355607408,1741365031996,-1520.4782794,8.194e-05,2]
[355607409,1741365032006,-3871.1234997,8.194e-05,2]
[355607410,1741365032018,-1077.0,8.2e-05,2]
[355607411,1741365032028,-158.0,8.2e-05,3]
[355607412,1741365032037,-266635.96300801,8.2e-05,2]
[355607413,1741365032078,-22699.93368108,8.2e-05,2]
[355607414,1741365032089,-724.18045567,8.2e-05,2]
[355607417,1741365032115,-3321.95662536,8.2e-05,2]
[355607423,1741365037499,-301.22279622,8.2e-05,2]
[355607424,1741365037512,-970.705572,8.2e-05,2]
[355607425,1741365037526,-1278.19398556,8.2e-05,2]
[355607426,1741365037588,-557.18461732,8.2e-05,2]
[355607432,1741365037968,-88189.27939244,8.2e-05,2]
[355607439,1741365038044,-490.04,8.2e-05,2]
[355607606,1741365039686,-30840.2355131,8.2e-05,2]
[355607611,1741365039731,-1029.8000001,8.2e-05,2]
[355607614,1741365039743,-545.7393,8.2e-05,2]
[355607629,1741365039882,-552.31242,8.2e-05,2]
[355607631,1741365039894,-638.8234,8.2e-05,2]
[355607635,1741365039917,-715.20856961,8.2e-05,2]
[355607637,1741365039929,-652.48499834,8.2e-05,2]
[355607934,1741365042637,-2015.74171629,8.2e-05,2]
[355607937,1741365042654,-325.6,8.2e-05,2]
[355607947,1741365042789,-81338.97863293,8.2e-05,2]
[355608061,1741365043891,-831.20304981,8.2e-05,2]
[355608180,1741365045650,-41122.11094032,8.2e-05,2]
[355608181,1741365045774,-1277.10201393,8.2e-05,2]
[355608182,1741365045799,-267.48275684,8.2e-05,2]
[355608187,1741365169388,150.0,8.02e-05,2]
[355608188,1741365169901,150.0,7.996e-05,2]
[355608189,1741365613608,304.58,7.509e-05,2]
[355608191,1741365930639,151.05,7.662e-05,2]
[355608192,1741365934661,151.05,7.711e-05,2]
[355608193,1741365934856,151.05,7.76e-05,2]
[355608194,1741365935089,151.05,7.808e-05,2]
[355608195,1741365935322,151.05,7.857e-05,2]
[355608196,1741365935523,151.05,7.906e-05,2]
[355608197,1741365935777,151.05,7.955e-05,2]
[355608198,1741365936046,151.05,8.003e-05,2]
[355608199,1741365936278,151.05,8.052e-05,2]
[355608200,1741366072604,973.04,7.449e-05,2]
[355608201,1741366144162,-151.05,8.101e-05,2]
[355608202,1741366144196,-150.0,8.116e-05,2]
[355608203,1741366144235,-151.05,8.15e-05,2]
[355608204,1741366144272,-150.0,8.163e-05,2]
[355608205,1741366144304,-800.9505721,8.17e-05,2]
[355608206,1741366144337,-173.504,8.183e-05,2]
[355608207,1741366144369,-152.97268837,8.183e-05,2]
[355608208,1741366144408,-1260.4866538,8.183e-05,2]
[355608209,1741366152446,1011.17,7.314e-05,2]
[355608210,1741366156295,1027.66065948,8.019e-05,2]
[355608211,1741366169688,-244.4813462,8.183e-05,2]
[355608212,1741366169717,-53.12146568,8.19e-05,2]
[355608213,1741366177502,-292.87853432,8.19e-05,2]
[355608214,1741366177530,-5446.504019,8.194e-05,2]
[355608215,1741366177556,-2365.4559385,8.194e-05,2]
[355608216,1741366177584,-151.05,8.198e-05,2]
[355608217,1741366177609,-150.0,8.199e-05,2]
[355608218,1741366177636,-249.7804531,8.199e-05,2]
[355608219,1741366177664,-1176.0,8.2e-05,2]
[355608220,1741366177688,-3931.0,8.2e-05,2]
[355608221,1741366177713,-237.564,8.2e-05,2]
[355608222,1741366177755,-172.529,8.2e-05,2]
[355608223,1741366177779,-1278.0,8.2e-05,2]
[355608224,1741366177803,-2032.0,8.2e-05,2]
[355608225,1741366177830,-1012.0,8.2e-05,2]
[355608226,1741366177858,-1459.0,8.2e-05,2]
[355608227,1741366177884,-150.0,8.2e-05,2]
[355608228,1741366177911,-641.0,8.2e-05,2]
[355608229,1741366177938,-571.0,8.2e-05,2]
[355608230,1741366177962,-1113.0,8.2e-05,2]
[355608231,1741366177986,-786.0,8.2e-05,2]
[355608232,1741366178010,-541.0,8.2e-05,2]
[355608233,1741366178034,-1428.0,8.2e-05,2]
[355608234,1741366178060,-1270.0,8.2e-05,2]
[355608235,1741366178085,-907.0,8.2e-05,2]
[355608236,1741366178113,-4042.0,8.2e-05,2]
[355608237,1741366178140,-18597.23805508,8.2e-05,2]
[355608238,1741366181233,1107.71504684,8.036e-05,2]
[355608239,1741366191312,-1169.0,8.2e-05,2]
[355608240,1741366191340,-48831.0,8.2e-05,2]
[355608241,1741366196330,1146.23470049,8.036e-05,2]
[355608242,1741366197691,2000.0,7.789e-05,2]
[355608243,1741366219406,168.1,7.533e-05,2]
[355608244,1741366227217,-1045.0,8.2e-05,2]
[355608245,1741366227242,-1012.0,8.2e-05,2]
[355608246,1741366227266,-3931.0,8.2e-05,2]
[355608247,1741366227295,-44012.0,8.2e-05,2]
[355608269,1741366231831,-150.0,8.2e-05,2]
[355608270,1741366231840,-2929.87241982,8.2e-05,2]
[355608277,1741366235849,-2445.10796,8.2e-05,2]
[355608279,1741366235860,-4329.88520208,8.2e-05,2]
[355608280,1741366235872,-659.50637999,8.2e-05,2]
[355608281,1741366235907,-2327.67686282,8.2e-05,2]
[355608282,1741366235930,-757.8900005,8.2e-05,2]
[355608283,1741366235942,-510.674481,8.2e-05,2]
[355608284,1741366235954,-12094.25219999,8.2e-05,2]
[355608290,1741366237728,-759.17104782,8.1e-05,2]
[355608291,1741366237742,-880.30029246,8.1e-05,2]
[355608292,1741366237753,-8795.0,8.1e-05,2]
[355608293,1741366237782,-8660.77655972,8.1e-05,2]
[355608294,1741366237792,-160.662,8.2e-05,2]
[355608295,1741366237801,-57953.77522115,8.2e-05,2]
[355608296,1741366237813,-54591.94831358,8.2e-05,2]
[355608297,1741366237828,-10820.0,8.2e-05,2]
[355608298,1741366237839,-2202.00926813,8.2e-05,2]
[355608299,1741366237866,-2282.98589537,8.2e-05,2]
[355608300,1741366237951,-13163.5746,8.2e-05,2]
[355608301,1741366238002,-5028.85584,8.2e-05,2]
[355608302,1741366238030,-880.765,8.2e-05,2]
[355608303,1741366238042,-427.64150076,8.2e-05,2]
[355608304,1741366238121,-65402.55612547,8.2e-05,2]
[355608479,1741366239803,-155001.80892968,8.2e-05,2]
[355608491,1741366239904,-471.2880447,8.2e-05,2]
[355608540,1741366240388,1104.2243407,8.036e-05,2]
[355608679,1741366241868,-942.0,8.2e-05,2]
[355608681,1741366241877,-200.0,8.2e-05,2]
[355608683,1741366241887,-1033.67349998,8.2e-05,2]
[355608693,1741366241988,-48730.19246817,8.2e-05,2]
[355608725,1741366242287,-12626.29407455,8.2e-05,2]
[355608727,1741366242299,-319.9675768,8.2e-05,2]
[355608729,1741366242311,-250.20232885,8.2e-05,2]
[355608797,1741366242876,-66657.64910273,8.2e-05,2]
[355608800,1741366242889,-25186.3396482,8.2e-05,2]
[355608845,1741366243450,-3672.76191821,8.2e-05,2]
[355608846,1741366243476,-496.67931444,8.2e-05,2]
[355608847,1741366243490,-2404.8,8.2e-05,2]
[355608848,1741366243502,-81338.97863293,8.2e-05,2]
[355608849,1741366244339,150.0,7.948e-05,2]
[355608850,1741366244373,150.0,7.955e-05,2]
[355608851,1741366244423,150.0,8.035e-05,2]
[355608852,1741366244461,150.0,8.057e-05,2]
[355608853,1741366244500,150.0,7.993e-05,2]
[355608854,1741366244547,150.0,8.02e-05,2]
[355608855,1741366244583,150.0,7.961e-05,2]
[355608856,1741366244648,150.0,7.947e-05,2]
[355608857,1741366244701,150.0,8.08e-05,2]
[355608858,1741366244939,150.0,8.047e-05,2]
[355608859,1741366244976,1000.0,8.041e-05,2]
[355608860,1741366245014,150.0,7.964e-05,2]
[355608861,1741366245059,150.0,8.014e-05,2]
[355608862,1741366245097,1000.0,7.834e-05,2]
[355608863,1741366245153,150.0,7.96e-05,2]
[355608864,1741366245256,1000.0,7.915e-05,2]
[355608865,1741366245331,150.0,8.016e-05,2]
[355608866,1741366245365,150.0,7.994e-05,2]
[355608867,1741366245427,150.0,8.018e-05,2]